Cogmind - Beta 13 @@@ ROGUE MODE // 2024.04.12 @ 21:11:55 Player: JTMusky Result: Destroyed self via exploding Fusion Modulator Performance ------------- Evolutions (0) 0 Regions Visited (1) 200 Robots Destroyed (23) 115 Value Destroyed (495) 495 Prototype IDs (0) 0 Alien Tech Used (0) 0 Bonus (0) 0 TOTAL SCORE: 810 Bonus ------- None Cogmind --------- Core Integrity 0/250 Matter 284/300 Energy 250/250 System Corruption 0% Temperature Cool (44) Movement Walking (190) Ox1 Location -10/Materials Parts ------- > --- POWER (1) -------- Ion Engine > --- PROPULSION (2) --- Aluminum Leg > --- UTILITY (2) ------ Medium Storage Unit Signal Interpreter > --- WEAPON (2) ------- Light Assault Rifle > --- INVENTORY (10) --- Ion Engine Aluminum Leg Aluminum Leg Weight Redist. System Improved Terrain Scanner Seismic Detector ECM Suite Small Laser Light Assault Rifle Mining Claw Peak State ------------ > --- POWER ------------ Ion Engine > --- PROPULSION ------- Aluminum Leg Aluminum Leg > --- UTILITY ---------- Medium Storage Unit Seismic Detector > --- WEAPON ----------- EM Pulse Gun Light Assault Rifle > --- INVENTORY -------- Aluminum Leg Aluminum Leg Aluminum Leg Weight Redist. System Improved Terrain Scanner Small Laser Light Assault Rifle Mining Claw [Rating: 8] Favorites ----------- Power Ion Engine Engine Ion Engine Propulsion Aluminum Leg Treads Light Treads Leg Aluminum Leg Utility Medium Storage Unit Device Seismic Detector Storage Medium Storage Unit Processor Signal Interpreter Weapon Light Assault Rifle Energy Gun EM Pulse Gun Ballistic Gun Light Assault Rifle Special Weapon Mining Laser Build | -11 -10 ------- Run | Yrd Mat Slots Evolved . | . . Power . | . . Propulsion . | . . Utility . | . . Weapon . | . . Parts Attached 18 | 7 11 Power 3 | 1 2 Engine 3 | 1 2 Core . | . . Reactor . | . . Propulsion 4 | 2 2 Treads 2 | 2 . Leg 2 | . 2 Wheel . | . . Hover . | . . Flight . | . . Utility 4 | 2 2 Device 1 | 1 . Storage 2 | 1 1 Processor 1 | . 1 Hackware . | . . Protection . | . . Artifact . | . . Weapon 7 | 2 5 Energy Gun 3 | 1 2 Energy Cannon . | . . Ballistic Gun 3 | 1 2 Ballistic Cannon . | . . Launcher . | . . Special Weapon 1 | . 1 Impact Weapon . | . . Slashing Weapon . | . . Piercing Weapon . | . . Special Melee Weapon . | . . Unidentified Prototypes . | . . Parts Lost 5 | . 5 Power 1 | . 1 Propulsion 1 | . 1 Utility . | . . Weapon 3 | . 3 Highest Loss Streak 2 | . 2 To Critical Strikes . | . . Average Slot Usage (%) 98 | . 98 Engine 13 | . 13 Treads 3 | . 3 Leg 24 | . 24 Device 7 | . 7 Storage 14 | . 14 Processor 6 | . 6 Energy Gun 14 | . 14 Ballistic Gun 11 | . 11 Naked Turns . | . . Heaviest Build 19 | 14 19 Greatest Support 40 | 40 40 Greatest Overweight (x) . | . . Average Overweight (x) . | . . Largest Inventory Capacity 10 | 8 10 Average Capacity 9 | 7 9 Most Carried 10 | 8 10 Average Carried 7 | 5 8 Final Capacity 10 | 8 10 Final Carried 10 | 7 10 Class Distribution -------------------- 100% | Mutant Dominant Class ---------------- Mutant | -10/Materials Resources | -11 -10 ----------- Run | Yrd Mat Matter Collected 444 | 297 147 Remotely . | . . Salvage Created 620 | 167 453 Parts 60 | 13 47 Haulers Intercepted 1 | . 1 Recyclers Shooed 1 | 1 . Parts Field Recycled . | . . Retrieved Matter . | . . Parts Self-Destructed . | . . Prevented . | . . Kills | -11 -10 ------- Run | Yrd Mat Combat Hostiles Destroyed 9 | . 9 Guns 7 | . 7 AOE 2 | . 2 Classes Destroyed 9 | 3 6 Worker 1 | 1 . Builder 3 | . 3 Tunneler 3 | 3 . Hauler 1 | . 1 Recycler 1 | 1 . Operator 2 | . 2 Watcher 3 | . 3 Swarmer 3 | . 3 Grunt 6 | . 6 Best Kill Streak 5 | 2 5 Combat Bots Only 2 | . 2 Max Kills in Single Turn 3 | 1 3 Gunslinging . | . . Exploded 2 | . 2 Melee . | . . Uniques/NPCs Destroyed . | . . Combat | -11 -10 -------- Run | Yrd Mat Hostile Shots Fired 70 | . 70 Missed 15 | . 15 Damage Taken 997 | . 997 Core 284 | . 284 Absorbed by Shields . | . . Core Remaining (%) 100 | 100 . Volleys Fired 142 | 40 102 Largest 2 | 1 2 Hottest 100 | 40 100 Shots Fired 183 | 40 143 Gun 180 | 40 140 Cannon . | . . Launcher . | . . Special 3 | . 3 Kinetic 105 | 27 78 Thermal 18 | . 18 Explosive . | . . Electromagnetic 60 | 13 47 Robot Hit Streak 14 | 6 14 Robot Miss Streak 7 | 3 7 Penetration Max . | . . Secondary Targets 1 | . 1 Max Gunslinging Chain 1 | . 1 Shots Hit Robots 79 | 24 55 Core Hits 34 | 8 26 Critical Kills . | . . Critical Parts Destroyed . | . . Critical Strikes . | . . Melee Attacks . | . . Impact . | . . Slashing . | . . Piercing . | . . Sneak Attacks . | . . Combat Hostiles . | . . Follow-up Attacks . | . . Damage Inflicted 1284 | 234 1050 Guns 841 | 234 607 Cannons . | . . Explosions 443 | . 443 Melee . | . . Ramming . | . . Kinetic 480 | 145 335 Thermal 400 | . 400 Explosive 74 | . 74 Electromagnetic 330 | 89 241 Impact . | . . Slashing . | . . Piercing . | . . Highest Corruption . | . . Average Corruption . | . . Corruption Purged . | . . Corruption Blocked . | . . Overload Shots . | . . Overflow Damage 192 | . 192 Projectiles . | . . Explosions 192 | . 192 Melee . | . . Knockbacks . | . . Impact . | . . Kinetic . | . . Secondary . | . . Self-Inflicted Damage 306 | . 306 Shots 4 | . 4 Rammed . | . . Targets Rammed . | . . Kicked . | . . Crushed . | . . Highest Temperature 144 | . 144 Average Temperature 35 | . 35 Received Heat Transfer 234 | . 234 Siege Activations . | . . Robots Corrupted . | . . Combat Hostiles . | . . Parts Fried . | . . Impact Corruptions . | . . Robots Melted . | . . Combat Hostiles . | . . Parts Melted 1 | . 1 Heat Transferred 325 | . 325 Parts Sabotaged . | . . Parts Stolen . | . . Parts Stripped . | . . Power Chain Reactions . | . . Alert | -11 -10 ------- Run | Yrd Mat Peak Influence 348 | 25 348 Initial 16 | . 16 Average 95 | 9 108 Maximum Alert Level 1 | . 1 Low Security (%) 81 | 100 78 Level 1 18 | . 21 Level 2 . | . . Level 3 . | . . Level 4 . | . . Level 5 . | . . High Security . | . . Max Security . | . . Squads Dispatched 2 | . 2 Investigation . | . . Extermination . | . . Reinforcement 2 | . 2 Assault . | . . Garrison . | . . Intercept . | . . Searches Triggered . | . . Construction Impeded . | . . Haulers Reinforced . | . . Active Scanning Responses . | . . Cargo Convoy Interrupts . | . . Stealth | -11 -10 --------- Run | Yrd Mat Distress Signals 2 | . 2 Communications Jammed . | . . Distress Signals . | . . Times Spotted 18 | . 18 Peak Tracking Total 3 | . 3 Tactical Retreats 1 | . 1 Traps | -11 -10 ------- Run | Yrd Mat Traps Triggered 2 | . 2 Indirectly . | . . Trap Hack Attempts . | . . Triggered . | . . Disarmed . | . . Reprogrammed 6 | . 6 Reused 1 | . 1 Traps Extracted . | . . Installed . | . . Triggered 1 | . 1 Machines | -11 -10 ---------- Run | Yrd Mat Machines Disabled 11 | . 11 Max in Single Turn 6 | . 6 Machines Repaired . | . . Machines Dismantled . | . . Machines Sabotaged . | . . Overloaded Fab Kills . | . . Hacking | -11 -10 --------- Run | Yrd Mat Machines Accessed 5 | . 5 Terminals 5 | . 5 Fabricators . | . . Repair Stations . | . . Recycling Units . | . . Scanalyzers . | . . Garrison Access . | . . Total Hacks 17 | . 17 Successful 6 | . 6 Failed 11 | . 11 Catastrophic 2 | . 2 Database Lockouts . | . . Manual 4 | . 4 Terminals 17 | . 17 Fabricators . | . . Repair Stations . | . . Recycling Units . | . . Scanalyzers . | . . Garrison Access . | . . Terminal Hacks 6 | . 6 Record 1 | . 1 Terminal Index 1 | . 1 Reprogram Traps 1 | . 1 Investigation Status 1 | . 1 Registered Prototypes 1 | . 1 Zone Layout 1 | . 1 Fabricator Hacks . | . . Repair Station Hacks . | . . Recycling Unit Hacks . | . . Scanalyzer . | . . Garrison Access Hacks . | . . Unauthorized Hacks . | . . Terminals . | . . Fabricators . | . . Repair Stations . | . . Recycling Units . | . . Scanalyzers . | . . Garrison Access . | . . Data Cores Recovered . | . . Used . | . . Hacking Detections 4 | . 4 Full Trace Events 2 | . 2 Feedback Events . | . . Feedback Blocked . | . . Robot Schematics Acquired . | . . Robots Built . | . . Authchips . | . . Time . | . . Total Robot Build Rating . | . . Part Schematics Acquired . | . . Parts Built . | . . Authchips . | . . Time . | . . Total Part Build Rating . | . . Parts Repaired . | . . Time . | . . Parts Recycled . | . . Recycled Matter . | . . Retrieved Matter . | . . Retrieved Components . | . . Parts Scanalyzed . | . . Part Schematics Acquired . | . . Parts Damaged . | . . Bothacking | -11 -10 ------------ Run | Yrd Mat Used RIF Installer . | . . Robots Hacked . | . . Non-combat . | . . Combat . | . . Robot Hacks Applied . | . . Relay Couplers Released . | . . Fabnet Peak Effective % . | . . Robots Rewired . | . . Allies Hacked . | . . Hacks Repelled . | . . Allies | -11 -10 -------- Run | Yrd Mat Total Allies . | . . Largest Group . | . . Highest-Rated Group . | . . Highest-Rated Ally . | . . Total Orders . | . . Ally Attacks . | . . Total Damage . | . . Kills . | . . Allies Corrupted . | . . Allies Melted . | . . Intel | -11 -10 ------- Run | Yrd Mat Robot Analysis Total . | . . Derelict Logs Recovered . | . . Drone Launches . | . . Drone Recoveries . | . . Exploration | -11 -10 ------------- Run | Yrd Mat Turns Passed 1893 | 262 1631 Spaces Moved 921 | 108 813 Core 6 | 6 . Treads 153 | 102 51 Legs 762 | . 762 Wheels . | . . Hover . | . . Flight . | . . Fastest Speed 50 | 50 120 Average Speed 126 | 153 122 Slowest Speed 160 | 160 160 Overloaded Moves . | . . Propulsion Burnouts . | . . Robots Hopped . | . . Cave-ins Triggered . | . . Exploration Rate (%) 42 | 7 77 Regions Visited 1 Branch Regions . Pre-discovered Areas . | . . Known Exits Taken . | . . Unknown Exits Taken 1 | 1 . Scrap Searched . | . . Spaces Dug 3 | . 3 Terrain Destroyed 112 | . 112 Melee . | . . Projectile 3 | . 3 AOE 109 | . 109 Terrain Rammed . | . . Walls Destroyed . | . . Machines Disabled . | . . Actions | -11 -10 --------- Run | Yrd Mat Total 1481 | 168 1313 Wait 375 | 4 371 Move 920 | 107 813 Hop . | . . Pick Up 19 | 9 10 Fast Attach 6 | 4 2 Attach 6 | 3 3 Detach 2 | 1 1 Swap 6 | . 6 Drop 5 | . 5 Fire 142 | 40 102 Melee . | . . Ram . | . . Kick . | . . Crush . | . . Escape Stasis . | . . Rewire . | . . Trap . | . . Miscellaneous . | . . Route ------- -11/Scrapyard -10/Materials (discovered 4 exits: *Mat x2 / *Min x2) History --------- Turn | Location | Event 15 | -11/Scrapyard | Discovered new exit (range 15) 263 | -11/Scrapyard | Entered Materials 300 | -10/Materials | Build established: Mutant 580 | -10/Materials | Discovered new exit (range 16) 1060 | -10/Materials | Discovered new exit (range 15) 1245 | -10/Materials | Identified exit to Mines 1354 | -10/Materials | Discovered new exit (range 7) 1361 | -10/Materials | Identified exit to Materials 1549 | -10/Materials | Discovered exit to Mines (range 15) 1822 | -10/Materials | Core integrity fell below 50% 1894 | -10/Materials | Destroyed self via exploding Fusion Modulator Last Messages --------------- Unit. 01762_ R-06 Scavenger collects Lgt. Ion Engine. 01791_ U-05 Engineer lays Concrete. 01801_ Acquired Lgt. Assault Rifle. 01821_ Triggered Explosive Trap. 01821_ An explosion rips through the floor. 01821_ U-05 Engineer destroyed. 01822_ U-05 Engineer lays Concrete. 01823_ K-01 Serf collects debris. 01824_ U-05 Engineer lays Concrete. 01827_ K-01 Serf collects debris. 01828_ U-05 Engineer lays Concrete. 01832_ U-05 Engineer builds a Wall. 01833_ K-01 Serf collects debris. 01837_ U-05 Engineer lays Concrete. 01894_ Fusion Modulator explodes. 01894_ Aluminum Leg destroyed. 01894_ Destroyed Aluminum Leg. 01894_ EM Pulse Gun destroyed. 01894_ Destroyed EM Pulse Gun. Map ----- +----------------------------------------------------+ | """"" # #?????????# #??????# !!## #????? | | """"" # #?????????# #??????# > ""## #????? | | """"" + #?????????# #??????# ||## #????? | | # #?????????# #??????# ""?? #????? | | # #?###?????# #??????# "??####????? | | # ###%####### ####???## ##???????????? | | ####### !##???# #????????????? | | ??????# % #???? ?????????????? | | ??????# !#????????????????????? | | ??????+ ###+####### !#????????????????????? | | ??????# # #??# !#????????????????????? | | ??????# # #??# !##????????????????????? | | ??????# # ""#??# ####?????????????????????? | | ??????# # T"#??# #????????????????????????? | | ??????# # ""#??# #????????????????????????? | | ??????# # #??# #????????????????????????? | | ??????# ########??# #????????????????????????? | | ??????# ########### #????????????????????????? | | ??????# ## # #??#####?????????????????? | | ??????# # ### # ###???????????????? | | ####### # # ;;;;;;;;;##??????????????? | | # # # ;; #??????????????? | | """ # ########### ;; #??????????????? | | """ %+ #????????# % ; #??????????????? | | """ # ########## T" ; #??????????????? | | # < " @ #??????????????? | | ! # ########## ; #??????????????? | | ###########????????# ; #??????????????? | | ???????????????????#####;; #??????????????? | | ???????????????????????### #??????????????? | | ?????????????????????????##########??????????????? | | ?????????????????????????????????????????????????? | | ?????????????????????????????????????????????????? | | ?????????????????????????????????????????????????? | | ?????????????????????????????????????????????????? | | ?????????????????????????????????????????????????? | | ?????????????????????????????????????????????????? | | ?????????????????????????????????????????????????? | | ?????????????????????????????????????????????????? | | | | | | | | | | | | | | | | | | | | | | | +----------------------------------------------------+ Best States ------------- Heat Dissipation 25 Energy Generation 10 Energy Capacity 250 Matter Stores 300 Matter Capacity 300 Sight Range 16 Terrain Scan Density 10 Evasion (%) 55 Recoil Reduction 2 Item Schematics ----------------- None Robot Schematics ------------------ None Fabricated ------------ Nothing Alien Tech Used ----------------- None Achievements -------------- Loot Pinata Challenges ------------ None Game ------ Seed MassElectronDrive Manual? 0 Play Time 00:41:26 Cumulative 7.1 hours Start 2024.04.12 @ 20:25:21 End 2024.04.12 @ 21:11:55 Sessions 1 Manual Loads 0 Difficulty Rogue Special Mode None Game No. 7 Rogue 7 Adventurer 0 Explorer 0 Win Type - Total 0 Types 0/0/0/0/0/0/0/0/0 Lore% 4 Gallery% 7 Achievement% 5 Wizard Run 0 Options --------- Layout 2 ASCII 1 Keyboard 1 Movement Vi Keybinds 0 Fullscreen 2 Font 40/SmallcapsGlow Map View 50x44 Zoom Use 2% Tactical HUD 1 Map Filters NONE Filters NONE Steam 0 RUN: e58bda8b-9ba7-4cd4-a652-cdfea6f1932c